[Event "Romanian Open 2021"]
[Site "Alba Iulia"]
[Date "2021.11.23"]
[Round "4.4"]
[White "Vajda, Albert"]
[Black "Nastore, Pavel-Alexandru"]
[Result "1-0"]
[ECO "B52"]
[WhiteElo "2353"]
[BlackElo "2249"]
[Annotator "ChessBase"]
[PlyCount "81"]
[EventDate "2021.11.21"]
[EventType "swiss"]
[EventCountry "ROU"]
[SourceTitle "playchess.com"]
[Source "ChessBase"]
[SourceQuality "1"]
[TimeControl "5400+30"]

1. e4 {[%emt 0:00:04]} c5 {[%emt 0:00:19]} 2. Nf3 {[%emt 0:00:11]} d6 {[%emt 0:00:15]} 3. Bb5+ {[%emt 0:00:34]} Bd7 {[%emt 0:00:22]} 4. Bxd7+ {[%emt 0:00:19]} Nxd7 {[%emt 0:00:19]} 5. O-O {[%emt 0:00:30]} Ngf6 {[%emt 0:00:15]} 6. Re1 {[%emt 0:00:15]} e6 {[%emt 0:01:51]} 7. c3 {[%emt 0:02:33]} Be7 {[%emt 0:00:46]} 8. d4 {[%emt 0:00:11]} O-O {[%emt 0:02:14]} 9. e5 {[%emt 0:00:44]} Nd5 {[%emt 0:07:12]} 10. exd6 {[%emt 0:18:08]} Bxd6 {[%emt 0:01:16]} 11. Nbd2 {[%emt 0:01:58]} cxd4 {[%emt 0:06:03]} 12. Nxd4 {[%emt 0:00:50]} N7f6 {[%emt 0:00:48]} 13. Qf3 {[%emt 0:05:32]} Rc8 {[%emt 0:15:20]} 14. g3 {[%emt 0:05:06]} Qb6 {[%emt 0:04:40]} 15. Ne4 {[%emt 0:07:50]} Nxe4 {[%emt 0:03:19]} 16. Rxe4 {[%emt 0:02:45]} Be7 {[%emt 0:19:33]} 17. Qe2 {[%emt 0:05:05]} Rfd8 {[%emt 0:02:18]} 18. Nf3 {[%emt 0:16:14]} Qc5 {[%emt 0:16:00]} 19. h4 {[%emt 0:03:58]} Bf6 {[%emt 0:03:52]} 20. Bd2 {[%emt 0:07:01]} b5 {[%emt 0:03:18]} 21. Re1 {[%emt 0:01:51]} a5 {[%emt 0:04:40]} 22. h5 {[%emt 0:06:55]} b4 {[%emt 0:01:29]} 23. c4 {[%emt 0:00:13]} Nb6 {[%emt 0:00:27]} 24. h6 {[%emt 0:01:46]} Qh5 {[%emt 0:01:13]} 25. b3 {[%emt 0:01:40]} Bc3 {[%emt 0:02:06]} 26. Bxc3 {[%emt 0:01:31]} bxc3 {[%emt 0:00:02]} 27. hxg7 {[%emt 0:00:49]} c2 {[%emt 0:02:31]} 28. Kg2 {[%emt 0:00:17]} Nd5 {[%emt 0:01:30]} 29. Qxc2 {[%emt 0:01:09]} Qg6 {[%emt 0:00:23]} 30. Qb2 {[%emt 0:02:00]} Nf6 {[%emt 0:00:18]} 31. Rh4 {[%emt 0:01:43]} Rc5 {[%emt 0:00:39]} 32. Re5 {[%emt 0:01:24]} Rxe5 {[%emt 0:00:15]} 33. Qxe5 {[%emt 0:00:28]} Rd1 {[%emt 0:00:27]} 34. Rd4 {[%emt 0:01:26]} Rc1 {[%emt 0:00:18]} 35. Nh4 {[%emt 0:01:05]} Qh6 {[%emt 0:00:24]} 36. Rf4 {[%emt 0:00:34]} Kxg7 {[%emt 0:00:59]} 37. Qxa5 {[%emt 0:01:11]} Rc2 {[%emt 0:00:34]} 38. a4 {[%emt 0:00:32]} Nh5 {[%emt 0:00:43]} 39. Rg4+ {[%emt 0:00:22]} Kf6 {[%emt 0:00:04]} 40. Qd8+ {[%emt 0:00:19]} Ke5 {[%emt 0:00:02]} 41. Qd4# {[%emt 0:00:15]} 1-0

[Event "Romanian Open 2021"]
[Site "Alba Iulia"]
[Date "2021.11.23"]
[Round "4.9"]
[White "Sava, Robert-Gabriel"]
[Black "Butolo, Alexandru-Mircea"]
[Result "0-1"]
[ECO "B45"]
[WhiteElo "1735"]
[BlackElo "1768"]
[Annotator "NA RC"]
[PlyCount "62"]
[EventDate "2021.11.21"]
[EventType "swiss"]
[EventCountry "ROU"]
[SourceTitle "playchess.com"]
[Source "ChessBase"]
[SourceQuality "1"]
[TimeControl "5400+30"]

1. e4 {[%emt 0:00:12]} c5 {[%emt 0:00:35]} 2. Nf3 {[%emt 0:00:56]} Nc6 {[%emt 0:00:45]} 3. d4 {[%emt 0:00:39]} cxd4 {[%emt 0:00:09]} 4. Nxd4 {[%emt 0:00:46]} Nf6 {[%emt 0:00:28]} 5. Nc3 {[%emt 0:01:10]} e6 {[%emt 0:00:08]} 6. Nxc6 {[%emt 0:01:51]} bxc6 {[%emt 0:00:10]} 7. e5 {[%emt 0:01:04]} Nd5 {[%emt 0:00:05]} 8. Ne4 {[%emt 0:00:56]} Qc7 {[%emt 0:00:06]} 9. f4 {[%emt 0:01:25]} Rb8 {[%emt 0:00:04]} 10. c4 {[%emt 0:05:39]} Bb4+ {[%emt 0:00:05]} 11. Ke2 {[%emt 0:03:17]} O-O {[%emt 0:00:06]} 12. cxd5 {[%emt 0:04:03]} cxd5 {[%emt 0:00:05]} 13. Nf2 {[%emt 0:02:43]} f6 {[%emt 0:00:07]} 14. exf6 {[%emt 0:04:46]} Rxf6 {[%emt 0:00:11]} 15. Kf3 {[%emt 0:04:05]} Bb7 {[%emt 0:04:50]} 16. Nd3 {[%emt 0:06:24]} Bd6 {[%emt 0:23:51]} 17. Ke2 {[%emt 0:07:35]} Ba6 {[%emt 0:03:58]} 18. Ke1 {[%emt 0:06:35]} Re8 {[%emt 0:31:01]} 19. Be3 {[%emt 0:20:09]} d4 {[%emt 0:03:52]} 20. Bxd4 {[%emt 0:04:51]} e5 {[%emt 0:00:18]} 21. fxe5 {[%emt 0:01:32]} Bxe5 {[%emt 0:00:59]} 22. Nxe5 {[%emt 0:06:44]} Rxe5+ {[%emt 0:00:10]} 23. Be2 {[%emt 0:03:54]} Rxe2+ {[%emt 0:01:17]} 24. Qxe2 {[%emt 0:00:07]} Bxe2 {[%emt 0:00:34]} 25. Bxf6 {[%emt 0:00:08]} Bg4 {[%emt 0:00:21]} 26. Bc3 {[%emt 0:00:37]} Qc4 {[%emt 0:01:41]} 27. Kd2 {[%emt 0:01:56]} Qe2+ {[%emt 0:00:07]} 28. Kc1 {[%emt 0:00:13]} Bf5 {[%emt 0:00:05]} 29. Bd2 {[%emt 0:00:27]} d5 {[%emt 0:01:17]} 30. a4 {[%emt 0:01:47]} Qc4+ {[%emt 0:01:10]} 31. Bc3 {[%emt 0:00:32]} Qd3 {[%emt 0:00:06]} 0-1

[Event "Romanian Open 2021"]
[Site "Alba Iulia"]
[Date "2021.11.23"]
[Round "4.11"]
[White "Botea, David-Alexandru"]
[Black "Arion, Ilie"]
[Result "0-1"]
[ECO "B06"]
[WhiteElo "2013"]
[BlackElo "1758"]
[Annotator "ChessBase"]
[PlyCount "138"]
[EventDate "2021.11.21"]
[EventType "swiss"]
[EventCountry "ROU"]
[SourceTitle "playchess.com"]
[Source "ChessBase"]
[SourceQuality "1"]
[TimeControl "5400+30"]

1. e4 {[%emt 0:00:08]} g6 {[%emt 0:00:19]} 2. d4 {[%emt 0:00:04]} Bg7 {[%emt 0:00:20]} 3. Nc3 {[%emt 0:00:05]} d6 {[%emt 0:00:35]} 4. f4 {[%emt 0:00:06]} a6 {[%emt 0:00:47]} 5. Nf3 {[%emt 0:00:13]} b5 {[%emt 0:00:47]} 6. Bd3 {[%emt 0:00:11]} Nd7 {[%emt 0:00:37]} 7. e5 {[%emt 0:00:20]} c5 {[%emt 0:00:43]} 8. Be4 {[%emt 0:00:17]} Rb8 {[%emt 0:00:46]} 9. O-O {[%emt 0:00:09]} cxd4 {[%emt 0:01:32]} 10. Qxd4 {[%emt 0:00:11]} b4 {[%emt 0:01:06]} 11. Ne2 {[%emt 0:09:18]} Nc5 {[%emt 0:01:49]} 12. Bc6+ {[%emt 0:02:13]} Bd7 {[%emt 0:00:13]} 13. Bxd7+ {[%emt 0:00:49]} Qxd7 {[%emt 0:00:08]} 14. Rd1 {[%emt 0:12:30]} Nh6 {[%emt 0:21:40]} 15. Qc4 {[%emt 0:27:22]} Ne6 {[%emt 0:14:52]} 16. exd6 {[%emt 0:02:58]} Qa7+ {[%emt 0:01:38]} 17. Nfd4 {[%emt 0:02:14]} exd6 {[%emt 0:02:54]} 18. Qc6+ {[%emt 0:27:30]} Qd7 {[%emt 0:04:24]} 19. Qd5 {[%emt 0:02:55]} O-O {[%emt 0:08:35]} 20. Be3 {[%emt 0:07:02]} Ng4 {[%emt 0:01:36]} 21. Rd3 {[%emt 0:01:48]} Nc5 {[%emt 0:00:53]} 22. Nc6 {[%emt 0:01:05]} Nxd3 {[%emt 0:03:09]} 23. Nxb8 {[%emt 0:00:15]} Rxb8 {[%emt 0:00:29]} 24. Qxd3 {[%emt 0:00:07]} Nxe3 {[%emt 0:00:33]} 25. Qxe3 {[%emt 0:00:03]} Re8 {[%emt 0:02:03]} 26. Qd2 {[%emt 0:01:55]} Qe6 {[%emt 0:05:25]} 27. Kf2 {[%emt 0:01:15]} Bxb2 {[%emt 0:00:55]} 28. Rb1 {[%emt 0:00:04]} Qxa2 {[%emt 0:00:20]} 29. Rd1 {[%emt 0:00:19]} Qc4 {[%emt 0:00:42]} 30. Rb1 {[%emt 0:01:30]} Qc5+ {[%emt 0:00:40]} 31. Kf1 {[%emt 0:00:24]} Bc3 {[%emt 0:00:49]} 32. Nxc3 {[%emt 0:00:33]} bxc3 {[%emt 0:00:19]} 33. Qd3 {[%emt 0:00:32]} d5 {[%emt 0:01:18]} 34. Qxa6 {[%emt 0:00:30]} Qe3 {[%emt 0:00:39]} 35. Qd3 {[%emt 0:00:33]} Qxf4+ {[%emt 0:00:40]} 36. Qf3 {[%emt 0:00:22]} Qxh2 {[%emt 0:00:36]} 37. Rd1 {[%emt 0:00:15]} d4 {[%emt 0:00:36]} 38. Kf2 {[%emt 0:00:27]} Qh4+ {[%emt 0:00:19]} 39. Kg1 {[%emt 0:00:46]} Qe4 {[%emt 0:00:19]} 40. Qxe4 {[%emt 0:00:36]} Rxe4 {[%emt 0:00:06]} 41. Kf2 {[%emt 0:00:05]} Kg7 {[%emt 0:00:07]} 42. Kf3 {[%emt 0:00:15]} f5 {[%emt 0:00:07]} 43. Rb1 {[%emt 0:00:08]} Kf6 {[%emt 0:00:14]} 44. Rb6+ {[%emt 0:00:48]} Kg5 {[%emt 0:00:13]} 45. Rd6 {[%emt 0:00:08]} Re1 {[%emt 0:00:41]} 46. Rxd4 {[%emt 0:00:37]} Rc1 {[%emt 0:00:04]} 47. g4 {[%emt 0:00:23]} Rxc2 {[%emt 0:00:26]} 48. gxf5 {[%emt 0:00:08]} Kxf5 {[%emt 0:00:11]} 49. Rd5+ {[%emt 0:00:17]} Ke6 {[%emt 0:00:13]} 50. Rc5 {[%emt 0:00:05]} Rc1 {[%emt 0:00:26]} 51. Ke2 {[%emt 0:00:19]} h5 {[%emt 0:00:13]} 52. Kf2 {[%emt 0:00:29]} c2 {[%emt 0:00:22]} 53. Kg2 {[%emt 0:00:04]} Kf6 {[%emt 0:00:12]} 54. Rc6+ {[%emt 0:00:15]} Kg5 {[%emt 0:00:09]} 55. Rc5+ {[%emt 0:00:21]} Kh6 {[%emt 0:00:21]} 56. Rc6 {[%emt 0:00:06]} h4 {[%emt 0:00:13]} 57. Kh2 {[%emt 0:00:07]} Kh5 {[%emt 0:00:05]} 58. Rc5+ {[%emt 0:00:23]} g5 {[%emt 0:00:05]} 59. Kg2 {[%emt 0:00:04]} h3+ {[%emt 0:00:16]} 60. Kh2 {[%emt 0:00:32]} Kh4 {[%emt 0:00:11]} 61. Rc4+ {[%emt 0:00:07]} Kh5 {[%emt 0:01:06]} 62. Rc5 {[%emt 0:02:27]} Kg6 {[%emt 0:00:16]} 63. Rc6+ {[%emt 0:00:09]} Kf5 {[%emt 0:00:05]} 64. Rc5+ {[%emt 0:00:07]} Ke6 {[%emt 0:00:12]} 65. Rc6+ {[%emt 0:00:15]} Kd7 {[%emt 0:00:13]} 66. Rc5 {[%emt 0:03:39]} g4 {[%emt 0:00:08]} 67. Kg3 {[%emt 0:00:04]} Rg1+ {[%emt 0:00:18]} 68. Kh2 {[%emt 0:00:04]} Rg2+ {[%emt 0:01:01]} 69. Kh1 {[%emt 0:00:05]} Rd2 {[%emt 0:00:09]} 0-1